bitfinex-derivatives/quotes_ETHF0:USTF0_20241022
["timestamp","ask_amount","ask_price","bid_price","bid_amount"]
[1729611257446,3.2078,2627.0,2626.6,9.52951271]
[1729611257747,3.2078,2627.0,2626.9,0.38084]
[1729611257943,3.2078,2627.0,2626.9,4.18724]
[1729611258344,7.55023569,2627.4,2626.9,4.18724]
[1729611258652,0.38081,2627.2,2627.1,0.38081]
[1729611259039,3.96165569,2627.3,2626.9,0.38084]
[1729611259040,0.38082,2627.1,2626.9,0.38084]
[1729611259250,0.38082,2627.1,2626.8,4.8588]
[1729611259451,7.88363569,2627.3,2626.8,2.92895]
[1729611259750,0.38084,2626.9,2626.8,2.5481]
[1729611259940,0.38084,2626.9,2626.7,0.38086]
[1729611259941,0.38085,2626.9,2626.7,0.38086]
[1729611260245,0.38085,2626.9,2626.6,5.34142271]
[1729611260246,0.38085,2626.9,2626.8,0.38086]
[1729611260448,3.96165569,2627.1,2626.6,8.84174271]
[1729611260650,0.38082,2627.1,2627.0,0.38083]
[1729611260851,0.38082,2627.1,2626.9,0.38083]
[1729611261048,0.38083,2627.0,2626.9,0.38083]
[1729611261243,3.96165569,2627.2,2627.1,0.38081]
[1729611261244,0.38081,2627.2,2627.1,0.38081]
[1729611261453,6.26795569,2627.3,2627.2,0.3808]
[1729611261454,3.96165569,2627.3,2627.2,0.3808]
[1729611261653,4.67301698,2627.5,2627.3,0.38079]
[1729611261950,0.33060129,2627.5,2627.4,2.84317]
[1729611262145,0.38075,2627.6,2627.4,2.84317]
[1729611262448,0.38076,2627.5,2627.4,2.4624]
[1729611262753,4.67358506,2627.6,2627.5,0.38076]
[1729611262942,0.71192937,2627.6,2627.5,0.38076]
[1729611263348,0.71192937,2627.6,2627.4,2.4624]
[1729611263349,0.33118937,2627.6,2627.4,2.4624]
[1729611263653,0.33118937,2627.6,2627.2,0.38079]
[1729611263654,0.38078,2627.4,2627.2,0.38079]
[1729611264040,0.38077,2627.5,2627.3,0.38078]
[1729611264653,9.32455569,2627.6,2627.1,4.9184]
[1729611264953,0.38078,2627.4,2627.2,0.3808]
[1729611265149,9.32455569,2627.6,2627.1,4.9184]
[1729611265150,10.27642569,2627.6,2627.1,4.9184]
[1729611265351,8.509,2627.3,2626.7,3.2078]
[1729611265549,0.38083,2627.1,2626.9,0.38084]
[1729611266044,12.47065569,2627.3,2626.9,0.38084]
[1729611266045,0.38083,2627.0,2626.9,0.38084]
[1729611266245,3.96165569,2627.2,2626.8,2.408]
[1729611266452,0.38083,2627.1,2627.0,0.38082]
[1729611266643,3.96165569,2627.2,2626.8,2.408]
[1729611266846,0.38084,2627.0,2626.9,0.38083]
[1729611267646,0.86692155,2627.0,2626.9,0.38083]
[1729611268048,0.48608155,2627.0,2626.9,0.38083]
[1729611268245,0.48608155,2627.0,2626.9,4.18724]
[1729611268452,0.48608155,2627.0,2626.9,6.49894]
[1729611269449,8.40525584,2627.5,2627.0,0.95206]
[1729611269652,0.48619928,2627.4,2627.3,0.38079]
[1729611269850,0.48619928,2627.4,2627.3,2.80619]
[1729611270049,0.48619928,2627.4,2627.3,6.61259]
[1729611270558,3.96165569,2627.8,2627.3,9.2018]
[1729611270752,0.48614992,2627.7,2627.6,0.38074]
[1729611270948,0.48614992,2627.7,2627.6,2.70174]
[1729611271958,0.86687992,2627.7,2627.6,2.70174]
[1729611272851,0.48614992,2627.7,2627.6,6.50734]
[1729611273052,0.48614992,2627.7,2627.6,2.70174]
[1729611273354,0.48614992,2627.7,2627.6,6.50734]
[1729611273861,0.86687992,2627.7,2627.6,6.50734]
[1729611274157,0.48614992,2627.7,2627.6,6.50734]
[1729611274453,0.3807,2627.9,2627.6,6.1266]
[1729611274653,0.3807,2627.9,2627.8,0.38071]
[1729611274860,0.38073,2627.7,2627.6,2.70173]
[1729611275155,0.86670552,2627.7,2627.6,2.70173]
[1729611275556,0.38075,2627.6,2627.5,0.38074]
[1729611275751,0.86672552,2627.6,2627.5,0.38074]
[1729611276251,0.48597552,2627.6,2627.5,0.38074]
[1729611276858,0.86671552,2627.6,2627.5,0.38074]
[1729611277546,0.38076,2627.5,2627.4,3.58856]
[1729611277753,0.86673552,2627.5,2627.4,3.58856]
[1729611278156,0.48597552,2627.5,2627.3,2.4254]
[1729611278355,0.48597552,2627.4,2627.0,5.5177]
[1729611278551,0.38081,2627.1,2627.0,2.3099]
[1729611278854,0.38086,2626.8,2626.7,2.3272]
[1729611279057,0.38087,2626.7,2626.6,6.50170271]
[1729611279255,0.95205,2627.1,2626.6,6.12082271]
[1729611279454,0.8663439,2627.0,2626.9,0.38084]
[1729611280760,0.8663439,2627.0,2626.9,4.18724]
[1729611281857,0.8663439,2627.0,2626.9,6.49734]
[1729611282258,0.4854939,2627.0,2626.9,6.49734]
[1729611282559,0.8663239,2627.0,2626.9,8.80694]
[1729611282754,0.4854939,2627.0,2626.9,8.80694]
[1729611283358,4.9314,2627.3,2626.9,8.80694]
[1729611283658,0.86607243,2627.2,2627.1,0.38081]
[1729611283853,0.48525243,2627.2,2627.1,0.38081]
[1729611284852,0.86605243,2627.2,2627.1,0.38081]
[1729611287264,0.48525243,2627.2,2627.1,0.38081]
[1729611287462,0.86605243,2627.2,2627.1,0.38081]
[1729611287966,0.48525243,2627.2,2627.1,0.38081]
[1729611291562,4.9853,2627.6,2627.1,0.38081]
[1729611291766,0.48571269,2627.5,2627.4,0.38076]
[1729611292660,0.48571269,2627.5,2627.4,2.71386]
[1729611293269,0.48571269,2627.5,2627.4,8.89356]
[1729611295167,0.48571269,2627.5,2627.3,3.58858]
[1729611295373,0.86648269,2627.4,2627.3,3.58858]
[1729611295768,0.48571269,2627.4,2627.3,3.58858]
[1729611296968,0.48571269,2627.4,2627.3,7.39498]
[1729611297272,0.48635956,2627.5,2627.4,0.38077]
[1729611297468,0.48635964,2627.6,2627.3,4.15975]
[1729611297670,6.73637726,2627.8,2627.4,0.38077]
[1729611297671,0.48635964,2627.5,2627.4,0.38077]
[1729611297875,2.4299,2627.8,2627.4,3.35077]
[1729611298167,2.4299,2627.8,2627.7,0.38073]
[1729611298372,2.91623452,2627.8,2627.7,0.38073]
[1729611298675,0.48633452,2627.8,2627.7,0.38073]
[1729611300272,0.48633452,2627.8,2627.7,4.18633]
[1729611300678,0.48633452,2627.8,2627.7,6.72553]
[1729611301175,0.48633452,2627.8,2627.7,47.52553]
[1729611305274,7.0081266,2628.4,2627.7,50.1848]
[1729611305479,7.29535776,2629.2,2628.7,0.38058]
[1729611305480,0.38051,2629.2,2628.7,0.38058]
[1729611305678,4.7347,2629.1,2629.0,0.38054]
[1729611305877,4.7347,2629.1,2629.0,2.97]
[1729611306079,5.11522,2629.1,2628.8,43.77]
[1729611306381,2.4523,2629.0,2628.8,43.77]
[1729611306581,2.4523,2629.0,2628.9,0.38055]
[1729611312981,4.7347,2629.1,2628.8,6.1778]
[1729611313179,4.7347,2629.1,2629.0,3.35054]
[1729611313786,2.4154,2629.1,2629.0,3.35054]
[1729611314179,2.5446,2629.4,2629.3,0.3805]
[1729611314379,2.5446,2629.4,2629.3,3.3505]
[1729611314380,5.0575,2629.4,2629.3,3.3505]
[1729611316192,5.0575,2629.4,2629.3,7.15379365]
[1729611321205,5.43798,2629.4,2629.3,4.18379365]
[1729611322695,5.43798,2629.4,2629.3,3.80329365]
[1729611322895,5.43798,2629.4,2629.3,4.18379365]
[1729611323995,5.43798,2629.4,2629.3,3.80329365]
[1729611324192,0.38052,2629.2,2629.1,0.38051]
[1729611325198,0.38052,2629.2,2628.9,2.97]
[1729611325199,0.38054,2629.1,2629.0,0.38053]
[1729611326104,7.72533,2629.1,2628.3,3.2078]
[1729611326295,0.3806,2628.7,2628.6,0.38059]
[1729611326596,0.3806,2628.6,2628.5,0.38059]
[1729611326803,2.7798,2628.6,2628.5,0.38059]
[1729611327004,2.3992,2628.6,2628.5,0.38059]
[1729611327805,0.38065,2628.3,2628.2,0.38065]
[1729611328001,2.5009,2628.5,2628.2,2.97]
[1729611328301,2.5009,2628.5,2627.9,0.95174]
[1729611328302,2.5009,2628.5,2628.4,3.35063]
[1729611328699,2.88151,2628.5,2628.4,3.35063]
[1729611328901,2.5009,2628.5,2628.4,0.38063]
[1729611329396,4.8152,2628.5,2628.4,0.38063]
[1729611329800,2.3143,2628.5,2628.4,3.58843]
[1729611330098,2.3992,2628.6,2628.5,0.38061]
[1729611330303,2.3992,2628.6,2628.5,3.35061]
[1729611330809,2.3992,2628.6,2628.5,0.38061]
[1729611333596,2.7798,2628.6,2628.5,0.38061]
[1729611334296,0.38061,2628.5,2628.4,3.58842]
[1729611334501,0.38061,2628.5,2628.1,2.59066]
[1729611334502,0.38065,2628.3,2628.1,3.2078]
[1729611334704,2.422,2628.5,2628.3,0.38063]
[1729611334705,0.38063,2628.4,2628.3,0.38063]
[1729611335608,0.38065,2628.3,2628.2,0.38064]
[1729611335803,0.38065,2628.2,2628.1,3.2078]
[1729611336102,0.38065,2628.2,2627.7,7.39412946]
[1729611336103,0.38071,2627.8,2627.7,7.39412946]
[1729611336305,0.38071,2627.8,2627.7,47.81340946]
[1729611336603,0.38071,2627.8,2627.7,3.80560946]
[1729611336904,0.38071,2627.8,2627.7,4.18633946]
[1729611337295,5.6486721,2628.2,2627.8,0.3807]
[1729611337296,0.38071,2627.9,2627.8,0.3807]
[1729611337699,0.38071,2627.8,2627.7,4.18632946]
[1729611338210,0.38071,2627.8,2627.7,3.80560946]
[1729611338403,4.18631,2627.8,2627.7,3.80560946]
[1729611338598,4.18631,2627.8,2627.7,4.18633946]
[1729611338807,6.51891,2627.8,2627.7,4.18633946]
[1729611339008,6.51891,2627.8,2627.7,3.80560946]
[1729611339501,9.07191,2627.8,2627.7,3.80560946]
[1729611340612,4.8856,2627.8,2627.7,4.18633946]
[1729611341203,3.2078,2627.9,2627.8,0.38071]
[1729611341407,3.2078,2627.9,2627.8,4.18631]
[1729611341612,2.6786721,2628.2,2628.1,0.38067]
[1729611341613,2.4869,2628.2,2628.1,0.38067]
[1729611341811,3.2078,2628.3,2628.2,0.38065]
[1729611342103,3.2078,2628.3,2628.2,41.18065]
[1729611342507,2.553,2628.5,2628.4,0.38063]
[1729611343104,2.93361,2628.5,2628.4,0.38063]
[1729611345322,2.553,2628.5,2628.4,0.38063]
[1729611347910,2.93361,2628.5,2628.4,0.38063]
[1729611348714,2.553,2628.5,2628.4,0.38063]
[1729611349819,2.93361,2628.5,2628.4,0.38063]
[1729611350020,2.553,2628.5,2628.4,0.38063]
[1729611351216,2.93361,2628.5,2628.4,0.38063]
[1729611353116,2.93361,2628.5,2628.2,40.8]
[1729611353117,2.553,2628.5,2628.2,40.8]
[1729611353316,2.93361,2628.5,2628.4,0.38063]
[1729611354114,2.553,2628.5,2628.2,40.8]
[1729611354316,2.553,2628.5,2628.3,0.38063]
[1729611354317,0.38063,2628.4,2628.3,0.38063]
[1729611355013,2.553,2628.5,2628.2,40.8]
[1729611355215,2.553,2628.5,2628.4,0.38063]
[1729611357026,2.93361,2628.5,2628.4,0.38063]
[1729611357420,2.553,2628.5,2628.4,0.38063]
[1729611358125,0.38064,2628.4,2628.3,0.38063]
[1729611360026,0.38065,2628.3,2628.2,0.38065]
[1729611360526,3.50455,2628.5,2628.0,43.2356]
[1729611360712,0.38067,2628.1,2628.0,43.2356]
[1729611360913,0.38067,2628.1,2627.8,3.5885]
[1729611360914,0.3807,2627.9,2627.8,3.5885]
[1729611361121,7.4298,2628.0,2627.9,0.3807]
[1729611361325,0.38066,2628.3,2628.0,0.95172]
[1729611361525,0.38066,2628.3,2628.2,0.38064]
[1729611361827,0.38066,2628.3,2628.0,0.95172]
[1729611361828,0.38066,2628.2,2628.1,0.38065]
[1729611362324,10.6376,2628.4,2627.9,3.26734]
[1729611362525,0.38065,2628.3,2628.2,0.38065]
[1729611363728,0.38066,2628.2,2628.1,0.38065]
[1729611363920,0.38066,2628.2,2627.9,0.38069]
[1729611363921,0.38069,2628.0,2627.9,0.38069]
[1729611364319,0.38065,2628.3,2628.2,0.38064]
[1729611365725,0.38067,2628.2,2628.1,0.38066]
[1729611366033,0.38069,2628.0,2627.9,0.38068]
[1729611366931,0.19527335,2628.1,2627.8,2.5361]
[1729611367134,14.55917,2628.4,2627.8,2.5361]
[1729611367332,0.38069,2628.0,2627.9,0.38068]
[1729611368325,0.18805229,2628.1,2627.8,2.5361]
[1729611368535,0.3807,2627.9,2627.8,2.9168]
[1729611371431,0.3807,2627.9,2627.7,3.80560946]
[1729611371731,0.3807,2627.9,2627.8,0.38071]
[1729611373426,0.38071,2627.8,2627.7,3.80560946]
[1729611373627,6.55851,2627.8,2627.7,3.80560946]
[1729611373831,14.83085726,2627.8,2627.7,3.80560946]
[1729611374229,0.38078,2627.4,2627.3,0.38077]
[1729611374439,3.58856,2627.5,2627.4,0.38077]
[1729611374636,0.38076,2627.5,2627.4,0.38077]
[1729611374933,4.18636,2627.5,2627.4,0.38077]
[1729611378145,3.55036127,2627.8,2627.3,0.95196]
[1729611378340,3.2078,2627.8,2627.5,0.95189]
[1729611378645,3.2078,2627.8,2627.7,0.38073]
[1729611379944,3.58851,2627.8,2627.7,0.38073]
[1729611380141,3.2078,2627.8,2627.7,0.38073]
[1729611380947,3.58851,2627.8,2627.7,0.38073]
[1729611381447,0.38074,2627.7,2627.6,0.38073]
[1729611382145,3.2078,2627.8,2627.7,0.38073]
[1729611382542,3.58851,2627.8,2627.7,0.38073]
[1729611382743,3.2078,2627.8,2627.7,0.38073]
[1729611383756,3.58851,2627.8,2627.7,0.38073]
[1729611385248,0.38071,2627.9,2627.8,0.38071]
[1729611387462,2.89020555,2628.0,2627.5,0.95189]
[1729611387463,5.86020555,2628.0,2627.5,0.95189]
[1729611387853,0.38071,2627.9,2627.8,0.38071]
[1729611388362,0.38072,2627.8,2627.7,0.2292115]
[1729611388557,1.75072,2627.8,2627.7,0.2292115]
[1729611388967,1.37,2627.8,2627.7,0.2292115]
[1729611389256,1.75071,2627.8,2627.7,0.2292115]
[1729611393066,1.37,2627.8,2627.5,1.37]
[1729611393362,1.37,2627.6,2627.5,1.75076]
[1729611393657,1.37,2627.7,2627.6,0.38074]
[1729611394666,1.75073,2627.7,2627.6,0.38074]
[1729611394870,1.37,2627.7,2627.6,0.38074]
[1729611395164,1.75073,2627.7,2627.6,0.38074]
[1729611395366,1.37,2627.7,2627.6,0.38074]
[1729611395564,1.75073,2627.7,2627.6,0.38074]
[1729611395766,1.37,2627.7,2627.6,0.38074]
[1729611399081,1.75073,2627.7,2627.6,0.38074]
[1729611399267,1.37,2627.7,2627.6,0.38074]
[1729611399966,1.75073,2627.7,2627.6,0.38074]
[1729611401974,1.37,2627.7,2627.6,0.38074]
[1729611402376,1.75073,2627.7,2627.6,0.38074]
[1729611402577,5.5186,2627.9,2627.5,1.37]
[1729611402578,1.37,2627.8,2627.5,1.37]
[1729611402877,1.37,2627.8,2627.7,0.38073]
[1729611402878,1.75072,2627.8,2627.7,0.38073]
[1729611404271,1.37,2627.8,2627.7,0.38073]
[1729611404575,1.75071,2627.8,2627.7,0.38073]
[1729611404780,0.38074,2627.7,2627.6,0.38073]
[1729611404971,1.75074,2627.7,2627.6,0.38073]
[1729611406176,1.75074,2627.7,2627.2,0.952]
[1729611406177,1.37,2627.7,2627.2,0.952]
[1729611406479,1.7508,2627.3,2627.2,0.3808]
[1729611407178,0.2966357,2627.4,2627.2,0.3808]
[1729611407371,1.37,2627.3,2627.2,0.3808]
[1729611407572,1.6666357,2627.4,2627.3,0.38079]
[1729611407778,8.1069,2627.6,2627.3,1.37]
[1729611407779,1.37,2627.5,2627.3,1.37]
[1729611407974,1.75076,2627.5,2627.4,0.38077]
[1729611408778,1.37,2627.5,2627.4,0.38077]
[1729611408990,1.75076,2627.5,2627.4,0.38077]
[1729611409678,1.37,2627.5,2627.4,0.38077]
[1729611409875,2.4163,2627.6,2627.5,0.38076]
[1729611410077,2.4163,2627.6,2627.5,1.75076]
[1729611410282,3.7863,2627.6,2627.5,1.75076]
[1729611410875,3.7863,2627.6,2627.5,4.18576]
[1729611411083,3.7863,2627.6,2627.5,5.27596]
[1729611411477,3.7863,2627.6,2627.5,2.81576]
[1729611411678,3.7863,2627.6,2627.5,4.18576]
[1729611411886,1.37,2627.6,2627.5,7.99136]
[1729611413385,2.4298,2627.8,2627.5,7.99136]
[1729611413585,2.81052,2627.8,2627.7,0.38073]
[1729611413782,4.18052,2627.8,2627.7,0.38073]
[1729611413978,3.7998,2627.8,2627.7,0.38073]
[1729611415590,4.18051,2627.8,2627.7,0.38073]
[1729611415792,3.7998,2627.8,2627.2,3.41218]
[1729611415989,1.37,2627.3,2627.2,0.3808]
[1729611416290,4.5778,2627.6,2627.2,2.32199]
[1729611416593,4.5778,2627.6,2627.0,6.5512]
[1729611416594,6.71109951,2627.7,2627.4,1.37]
[1729611416789,1.75073,2627.7,2627.6,0.38074]
[1729611416990,1.37,2627.7,2627.6,0.38074]
[1729611417379,1.75073,2627.7,2627.6,0.38074]
[1729611419880,1.37,2627.7,2627.6,0.38074]
[1729611420490,1.75073,2627.7,2627.6,0.38074]
[1729611420691,1.37,2627.7,2627.6,0.38074]
[1729611421388,3.7998,2627.8,2627.7,0.38073]
[1729611422488,4.18051,2627.8,2627.7,0.38073]
[1729611422886,2.4298,2627.8,2627.7,1.75073]
[1729611423292,2.81051,2627.8,2627.7,1.75073]
[1729611423795,2.81051,2627.8,2627.1,3.2078]
[1729611423796,7.6054,2627.8,2627.1,3.2078]
[1729611424095,1.75081,2627.2,2627.1,0.38081]
[1729611424397,1.37,2627.3,2627.2,0.3808]
[1729611424599,4.7099,2627.3,2627.2,0.3808]
[1729611425893,6.0799,2627.3,2627.1,4.2403]
[1729611426096,6.46069,2627.3,2627.1,4.2403]
[1729611426697,6.46069,2627.3,2627.1,2.8703]
[1729611426900,6.0799,2627.3,2627.1,2.4895]
[1729611427193,1.7508,2627.2,2627.0,41.18082]
[1729611427399,1.75081,2627.1,2627.0,41.18082]
[1729611427604,1.37,2627.1,2627.0,41.18082]
[1729611427797,1.75081,2627.1,2627.0,41.18082]
[1729611428095,0.38086,2626.8,2626.7,2.87036]
[1729611428300,0.38086,2626.8,2626.7,0.38086]
[1729611428501,0.38086,2626.8,2626.7,41.18086]
[1729611428803,2.80186,2626.8,2626.7,41.18086]
[1729611429098,2.80186,2626.8,2626.7,1.75086]
[1729611429594,0.38087,2626.7,2626.6,44.09390271]
[1729611430401,1.75087,2626.7,2626.6,43.71302271]
[1729611431304,1.75087,2626.7,2626.6,2.91302271]
[1729611431595,7.12010422,2626.7,2626.6,2.91302271]
[1729611431796,5.75010422,2626.7,2626.6,2.91302271]
[1729611432905,0.381,2625.9,2625.7,0.38101]
[1729611433092,1.37,2625.8,2625.2,11.9121]
[1729611433396,1.37,2625.8,2625.5,0.38103]
[1729611433397,1.37,2625.6,2625.5,0.38103]
[1729611433897,3.8799,2625.8,2625.5,1.37]
[1729611434094,3.2078,2626.2,2625.7,1.37]
[1729611434300,0.38097,2626.0,2625.7,0.38102]
[1729611434492,0.38097,2626.1,2625.9,0.38098]
[1729611434999,0.38097,2626.0,2625.8,5.36289]
[1729611435198,0.38099,2625.9,2625.8,4.9819]
[1729611435496,0.38099,2625.9,2625.3,0.38107]
[1729611435497,0.38105,2625.5,2625.3,0.38107]
[1729611435699,0.38106,2625.4,2625.3,2.4219]
[1729611435894,2.97,2625.7,2625.3,2.4219]
[1729611436096,5.4895,2625.7,2625.3,2.4219]
[1729611436295,0.38101,2625.8,2625.6,0.38103]
[1729611436498,0.38099,2625.9,2625.8,0.381]
[1729611436693,9.07436,2626.3,2625.6,2.97]
[1729611436694,8.122,2626.3,2625.6,2.97]
[1729611436898,8.122,2626.3,2626.0,0.38096]
[1729611437404,0.38096,2626.1,2626.0,0.38096]
[1729611437603,8.122,2626.3,2625.8,2.5607]
[1729611437904,0.38095,2626.2,2626.1,0.38095]
[1729611439706,5.6149,2626.3,2625.8,3.5132]
[1729611439909,0.38095,2626.2,2626.1,0.38095]
[1729611440407,0.38095,2626.2,2626.1,41.18095]
[1729611442618,2.97,2626.2,2625.8,2.5607]
[1729611442809,2.97,2626.1,2625.7,2.4958]
[1729611443007,3.2078,2626.3,2625.8,2.4978]
[1729611443309,3.58873,2626.3,2626.2,0.38094]
[1729611444208,3.2078,2626.3,2626.2,0.38094]
[1729611444410,3.58873,2626.3,2626.2,0.38094]
[1729611444609,3.2078,2626.3,2626.2,0.38094]
[1729611445410,3.58873,2626.3,2626.2,0.38094]
[1729611445806,0.38093,2626.3,2626.2,0.38094]
[1729611446615,0.38093,2626.4,2626.3,0.38092]
[1729611447312,0.38091,2626.5,2626.4,0.3809]
[1729611448417,0.38091,2626.5,2626.4,0.38091]
[1729611449512,5.518,2626.6,2626.3,2.3429]
[1729611449709,0.38091,2626.5,2626.4,0.38091]
[1729611450616,5.518,2626.6,2626.5,0.3809]
[1729611450818,3.2078,2626.8,2626.7,0.38087]
[1729611451206,3.58866,2626.8,2626.7,0.38087]
[1729611451612,3.2078,2626.8,2626.7,0.38087]
[1729611452118,5.58076722,2627.0,2626.6,2.447]
[1729611452419,0.38086,2626.8,2626.7,0.38086]
[1729611453313,0.38086,2626.8,2626.6,2.447]
[1729611453314,5.58076722,2627.0,2626.6,2.447]
[1729611453513,0.38085,2626.9,2626.8,0.38085]
[1729611454406,0.38087,2626.8,2626.7,0.38086]
[1729611454614,3.35087,2626.8,2626.7,0.38086]
[1729611454815,0.38085,2626.9,2626.8,0.38086]
[1729611455821,0.38086,2626.8,2626.7,2.69936]
[1729611456116,5.58076722,2627.0,2626.7,2.3185]
[1729611456616,0.38086,2626.8,2626.7,2.69936]
[1729611457316,0.3809,2626.6,2626.5,0.38089]
[1729611457519,0.3809,2626.6,2626.3,4.7345]
[1729611457520,2.97,2626.6,2626.3,4.7345]
[1729611457708,7.8675,2626.5,2626.3,4.7345]
[1729611457912,0.38092,2626.4,2626.3,5.11542]
[1729611460114,3.2078,2626.5,2626.4,0.38092]
[1729611460318,2.97,2626.8,2626.7,0.38086]
[1729611460319,0.38087,2626.8,2626.7,0.38086]
[1729611463421,5.33515,2626.9,2626.8,0.38086]
[1729611464815,2.3345,2627.0,2626.6,0.95222]
[1729611465020,2.71533,2627.0,2626.9,0.38084]
[1729611465518,2.3345,2627.0,2626.9,0.38084]
[1729611465916,5.4968,2627.2,2627.1,0.3808]
[1729611465917,0.38081,2627.2,2627.1,0.3808]
[1729611466322,1.75081,2627.2,2627.1,0.3808]
[1729611466921,1.37,2627.2,2626.9,40.8]
[1729611467225,2.89509359,2627.3,2627.0,0.38082]
[1729611467226,0.38082,2627.1,2627.0,0.38082]
[1729611467421,1.75082,2627.1,2627.0,0.38082]
[1729611468323,0.38082,2627.1,2627.0,0.38082]
[1729611470215,5.86509359,2627.3,2626.8,4.9334]
[1729611470419,3.27589359,2627.3,2627.2,0.3808]
[1729611470622,3.2078,2627.4,2626.9,0.95211]
[1729611470818,3.58858,2627.4,2627.3,0.38079]
[1729611471220,0.38077,2627.4,2627.3,0.38079]
[1729611471419,2.81646,2627.5,2627.4,0.38077]
[1729611471820,2.4357,2627.5,2627.4,0.38077]
[1729611472226,2.81646,2627.5,2627.4,0.38077]
[1729611472717,2.4357,2627.5,2627.4,0.38077]
[1729611473123,2.76195,2627.6,2627.5,0.38076]
[1729611473432,0.56769558,2627.8,2627.3,9.14096]
[1729611473621,4.9191,2628.0,2627.4,0.95192]
[1729611473932,0.38072,2627.8,2627.7,0.38073]
[1729611474723,0.38071,2627.9,2627.8,0.3807]
[1729611474927,0.3807,2627.9,2627.8,0.38071]
[1729611475335,5.11182189,2628.0,2627.9,0.3807]
[1729611475336,4.9191,2628.0,2627.9,0.3807]
[1729611475630,3.2078,2628.2,2628.1,0.38067]
[1729611475631,3.58846,2628.2,2628.1,0.38067]
[1729611476219,3.2078,2628.2,2628.1,0.38067]
[1729611477431,3.58845,2628.2,2628.1,0.38067]
[1729611478525,3.2078,2628.2,2627.9,7.1505]
[1729611478732,0.38068,2628.0,2627.9,4.8026]
[1729611479133,0.3807,2627.9,2627.8,0.38071]
[1729611479731,2.97,2628.1,2627.7,2.3327]
[1729611479732,0.38071,2627.8,2627.7,2.3327]
[1729611479926,2.93721,2627.8,2627.7,2.3327]
[1729611480127,2.5565,2627.8,2627.6,5.93193]
[1729611480332,0.38073,2627.7,2627.6,5.93193]
[1729611482031,0.38073,2627.7,2627.6,5.5512]
[1729611482233,6.7756,2627.7,2627.1,3.2078]
[1729611482438,2.5565,2627.8,2627.2,4.7836]
[1729611482631,0.38075,2627.6,2627.5,0.38073]
[1729611483830,0.38075,2627.6,2627.5,3.58853]
[1729611484029,0.38075,2627.6,2627.5,3.2078]
[1729611484232,0.38077,2627.5,2627.4,0.38075]
[1729611485233,0.38079,2627.4,2627.3,0.38077]
[1729611486030,0.38079,2627.3,2627.2,5.16439]
[1729611486340,0.38083,2627.1,2627.0,0.38082]
[1729611487644,0.33827052,2627.8,2627.0,6.7764]
[1729611487830,0.33827052,2627.8,2627.5,0.38076]
[1729611487831,2.88425,2627.6,2627.5,0.38076]
[1729611488038,0.38073,2627.8,2627.7,0.3807]
[1729611489942,5.90056314,2628.0,2627.6,4.9807]
[1729611490140,0.38073,2627.7,2627.6,5.36143]
[1729611491550,0.38074,2627.6,2627.5,0.38075]
[1729611491756,5.35,2627.6,2627.3,2.4719]
[1729611492238,0.38077,2627.4,2627.3,2.85268]
[1729611493143,7.7722,2627.6,2627.3,2.4719]
[1729611493340,0.38077,2627.5,2627.4,0.38076]
[1729611493645,0.38077,2627.4,2627.3,2.4719]
[1729611493836,0.38079,2627.3,2627.2,3.58859]
[1729611494144,0.38079,2627.3,2627.2,3.2078]
[1729611495035,0.38079,2627.3,2627.2,3.5886]
[1729611495232,0.38079,2627.3,2627.2,0.3808]
[1729611497737,0.38081,2627.2,2627.1,0.3808]
[1729611502153,2.71937,2627.4,2627.3,0.38079]
[1729611506148,4.8022,2627.6,2627.2,3.2078]
[1729611506349,0.38072,2627.8,2627.4,0.95192]
[1729611506552,0.38072,2627.8,2627.7,0.38073]
[1729611508651,2.75961104,2627.9,2627.8,0.38071]
[1729611508652,3.14032104,2627.9,2627.8,0.38071]
[1729611509049,2.4252,2627.9,2627.8,0.38071]
[1729611509252,0.38068,2628.1,2627.9,0.3807]
[1729611509450,0.38068,2628.1,2628.0,0.38068]
[1729611509954,0.3807,2628.0,2627.9,0.38069]
[1729611511755,0.3807,2628.0,2627.5,5.5807]
[1729611511756,3.99910904,2628.0,2627.5,5.5807]
[1729611512057,0.38074,2627.7,2627.6,0.38073]
[1729611513359,4.18634,2627.7,2627.6,0.38074]
[1729611513554,7.83673,2627.8,2627.7,0.38073]
[1729611513753,2.4899,2627.8,2627.7,0.38073]
[1729611513953,0.38069,2628.0,2627.9,0.38068]
[1729611517256,10.4313,2628.1,2627.6,4.15964]
[1729611517457,0.38071,2627.9,2627.8,0.3807]
[1729611518155,0.38074,2627.7,2627.6,0.38072]
[1729611520262,0.38074,2627.6,2627.5,3.58855]
[1729611520459,2.82334,2627.6,2627.5,3.58855]
[1729611521359,2.4426,2627.6,2627.4,7.80496]
[1729611521552,0.38076,2627.5,2627.4,7.80496]
[1729611522566,0.38076,2627.5,2627.4,7.80497]
[1729611524258,2.4426,2627.6,2627.5,0.38076]
[1729611524259,2.82335,2627.6,2627.5,0.38076]
[1729611524460,0.38075,2627.6,2627.5,0.38076]
[1729611524764,0.38073,2627.8,2627.7,0.38072]
[1729611525454,2.3271,2627.9,2627.7,0.38072]
[1729611525664,0.38069,2628.0,2627.5,0.95188]
[1729611525862,0.38069,2628.0,2627.9,0.3807]
[1729611528768,0.38071,2627.9,2627.8,0.3807]
[1729611534881,0.38072,2627.8,2627.7,0.38072]
[1729611536790,0.38076,2627.5,2627.4,7.4242]
[1729611537095,2.4137,2627.7,2627.4,2.4367]
[1729611537385,0.38075,2627.6,2627.5,0.38074]